lending/lending_fUSD_20251111
["ID","MTS","AMOUNT","RATE_DAILY","PERIOD"]
[393648583,1762877446798,-31410.56178701,0.00040135,7]
[393648584,1762877446809,-11680.79328358,0.00040135,7]
[393648588,1762877446961,-195.00930786,0.00040135,7]
[393648589,1762877446971,-15095.84159231,0.00040135,7]
[393648590,1762877447021,-1395.1784,0.00040135,7]
[393648591,1762877447032,-433.77499999,0.00040135,7]
[393648592,1762877447055,-852957.83933556,0.00040135,7]
[393648593,1762877447099,-450.0750025,0.00040007,2]
[393648594,1762877447111,-49.9249975,0.00040007,2]
[393648595,1762877447121,-1093.2250025,0.00040135,7]
[393648598,1762877447266,-378.43525808,0.00040135,7]
[393648599,1762877447278,-590.9676882,0.00040135,7]
[393648600,1762877447289,-5879.54952667,0.00040135,7]
[393648606,1762877447541,-500.0,0.00040017,2]
[393648608,1762877447551,-1568.4,0.00040135,7]
[393648804,1762878199377,396.41,0.00013699,2]
[393648835,1762878302008,335.75,0.00022206,120]
[393648839,1762878305516,195.0,0.00022206,120]
[393648842,1762878308504,409.58,0.00018,2]
[393648843,1762878308531,1000.0,0.00018,2]
[393648844,1762878308563,165868.76418908,0.00018,2]
[393648880,1762878408555,1390.66,0.00022,30]
[393648892,1762878414464,71061.48634622,0.000162,5]
[393648925,1762878472955,156739.86325761,0.00015,2]
[393648932,1762878554890,-3073.6525926,0.00032,7]
[393648933,1762878554933,-3911.38720088,0.00032,5]
[393648934,1762878554975,-154.0,0.00033,14]
[393648935,1762878555018,-154.0,0.00034521,30]
[393648936,1762878555063,-150.0,0.00036777,120]
[393648937,1762878555105,-192.35,0.00037426,120]
[393648938,1762878555148,-155.50735078,0.00037929,15]
[393648939,1762878555189,-500.0,0.00037973,5]
[393648940,1762878555232,-500.0,0.00037973,5]
[393648941,1762878555275,-500.0,0.00037989,20]
[393648942,1762878555317,-500.0,0.00037989,20]
[393648943,1762878555366,-2077.569,0.00037989,50]
[393648944,1762878555408,-262.22,0.00037989,50]
[393648945,1762878555454,-211.05144977,0.00037989,15]
[393648946,1762878555503,-239.09355632,0.00037989,15]
[393648947,1762878555545,-500.0,0.00037989,15]
[393648948,1762878555587,-201.41648489,0.00037989,15]
[393648949,1762878555631,-500.0,0.00037989,15]
[393648950,1762878555678,-500.0,0.00037989,15]
[393648951,1762878555726,-644.82927791,0.00037989,15]
[393648952,1762878555774,-500.0,0.00037989,15]
[393648953,1762878555822,-500.0,0.00037989,15]
[393648954,1762878555872,-500.0,0.00037989,15]
[393648955,1762878555929,-500.0,0.00037989,15]
[393648956,1762878555981,-500.0,0.00037989,15]
[393648957,1762878556205,-500.0,0.00037989,15]
[393648958,1762878556254,-151.0,0.00037997,14]
[393648959,1762878556295,-151.0,0.00037997,14]
[393648960,1762878556338,-150.0,0.00037999,20]
[393648961,1762878556382,-155.50735078,0.00038163,15]
[393648962,1762878556426,-1000.0,0.00038356,120]
[393648963,1762878556467,-1000.0,0.00038356,120]
[393648964,1762878556509,-1000.0,0.00038356,120]
[393648965,1762878556549,-1000.0,0.00038356,120]
[393648966,1762878556590,-588.89694481,0.00038356,120]
[393648967,1762878556631,-500.0,0.00038356,20]
[393648968,1762878556671,-500.0,0.00038356,20]
[393648969,1762878556709,-500.0,0.00038356,20]
[393648970,1762878556759,-500.0,0.00038356,20]
[393648971,1762878556806,-500.0,0.00038356,20]
[393648972,1762878556851,-500.0,0.00038356,20]
[393648973,1762878556895,-500.0,0.00038356,20]
[393648974,1762878556938,-500.0,0.00038356,20]
[393648975,1762878556980,-162.05,0.00038356,20]
[393648976,1762878557021,-172.4500098,0.00038356,120]
[393648977,1762878557064,-483.06831784,0.00038356,20]
[393648978,1762878557105,-155.50735078,0.00038398,15]
[393648979,1762878557144,-15492.83228582,0.0003841,5]
[393648980,1762878557184,-160.7909722,0.00038473,5]
[393648981,1762878557224,-501.05520094,0.00038473,5]
[393648982,1762878557266,-500.0,0.00038473,5]
[393648983,1762878557309,-500.0,0.00038473,5]
[393648984,1762878557351,-500.0,0.00038473,5]
[393648985,1762878557396,-500.0,0.00038473,5]
[393648986,1762878557444,-500.0,0.00038473,5]
[393648987,1762878557487,-500.0,0.00038473,5]
[393648988,1762878557531,-500.0,0.00038473,5]
[393648989,1762878557575,-500.74682065,0.00038473,5]
[393648990,1762878557616,-500.0,0.00038473,5]
[393648991,1762878557660,-501.08722389,0.00038473,5]
[393648992,1762878557702,-500.0,0.00038473,5]
[393648993,1762878557743,-500.0,0.00038473,5]
[393648994,1762878557790,-500.0,0.00038473,5]
[393648995,1762878557830,-502.09786773,0.00038473,5]
[393648996,1762878557871,-500.0,0.00038473,5]
[393648997,1762878557914,-500.0,0.00038473,5]
[393648998,1762878557957,-500.0,0.00038473,5]
[393648999,1762878558000,-502.34671415,0.00038473,5]
[393649000,1762878558041,-1000.0,0.00038521,5]
[393649001,1762878558082,-524.46659852,0.00038521,5]
[393649002,1762878558123,-556.41321553,0.00038573,5]
[393649003,1762878558163,-500.0,0.00038573,5]
[393649004,1762878558203,-552.30562073,0.00038573,5]
[393649005,1762878558244,-500.0,0.00038573,5]
[393649006,1762878558286,-501.60703041,0.00038573,5]
[393649007,1762878558326,-332.04793929,0.00038573,5]
[393649008,1762878558368,-500.0,0.00038573,5]
[393649009,1762878558411,-166.70999592,0.00038573,5]
[393649010,1762878558457,-160.92833107,0.00038573,5]
[393649011,1762878558500,-500.0,0.00038573,5]
[393649012,1762878558542,-151.0,0.00038588,14]
[393649013,1762878558582,-508.14376047,0.0003859,20]
[393649014,1762878558624,-190.87,0.0003859,20]
[393649015,1762878558664,-500.0,0.0003859,7]
[393649016,1762878558705,-500.0,0.0003859,7]
[393649017,1762878558744,-150.47403167,0.0003859,20]
[393649018,1762878558787,-500.0,0.0003859,20]
[393649019,1762878558830,-500.0,0.0003859,20]
[393649020,1762878558869,-219.30309074,0.0003859,20]
[393649021,1762878558908,-500.0,0.0003859,20]
[393649022,1762878558950,-500.0,0.0003859,20]
[393649023,1762878558991,-172.00641158,0.0003859,20]
[393649024,1762878559032,-500.0,0.0003859,20]
[393649025,1762878559074,-500.0,0.0003859,20]
[393649026,1762878559117,-500.0,0.0003859,20]
[393649027,1762878559158,-500.0,0.0003859,20]
[393649028,1762878559203,-155.50735078,0.00038632,15]
[393649029,1762878559246,-155.50735078,0.00038866,15]
[393649030,1762878559286,-1002.14670819,0.00039,7]
[393649031,1762878559328,-1002.25981652,0.00039021,5]
[393649032,1762878559370,-500.0,0.00039021,5]
[393649033,1762878559412,-500.45992734,0.00039021,5]
[393649034,1762878559453,-500.0,0.00039021,5]
[393649035,1762878559495,-220.39703715,0.00039068,5]
[393649036,1762878559537,-1000.0,0.000391,7]
[393649037,1762878559580,-155.50735078,0.00039101,15]
[393649038,1762878559622,-1000.0,0.00039121,5]
[393649039,1762878559664,-5783.70387413,0.0003918,120]
[393649040,1762878559709,-514.0,0.00039262,7]
[393649041,1762878559752,-155.50735078,0.00039335,15]
[393649042,1762878559793,-160.90585572,0.00039473,5]
[393649043,1762878559843,-155.50735078,0.00039569,15]
[393649044,1762878559884,-1000.0,0.000396,7]
[393649045,1762878559926,-308.0,0.00039769,120]
[393649046,1762878559968,-150.0,0.0003978,120]
[393649047,1762878560008,-155.50735078,0.00039804,15]
[393649048,1762878560049,-310.97,0.000399,60]
[393649049,1762878560090,-880.46,0.00039928,5]
[393649050,1762878560131,-884.78,0.00039928,5]
[393649051,1762878560171,-431.10794355,0.00039928,5]
[393649052,1762878560392,-1024.38774953,0.0003996,14]
[393649053,1762878560435,-150.42,0.00039975,14]
[393649054,1762878560476,-1500.0,0.0004,30]
[393649055,1762878560516,-1500.0,0.0004,30]
[393649056,1762878560557,-1866.96247674,0.0004,7]
[393649057,1762878560598,-485.92530177,0.00040007,20]
[393649058,1762878560640,-5066.0,0.00040016,5]
[393649059,1762878560680,-498.37297979,0.00040018,20]
[393649060,1762878560723,-150.0,0.00040036,49]
[393649061,1762878560763,-150.0,0.00040036,60]
[393649062,1762878560803,-500.0,0.00040036,60]
[393649063,1762878560845,-500.0,0.00040036,60]
[393649064,1762878560889,-150.0,0.00040036,60]
[393649065,1762878560934,-500.0,0.00040036,60]
[393649066,1762878560981,-500.0,0.00040036,60]
[393649067,1762878561026,-150.0,0.00040036,60]
[393649068,1762878561070,-500.0,0.00040036,60]
[393649069,1762878561111,-150.0,0.00040036,60]
[393649070,1762878561153,-500.0,0.00040036,60]
[393649071,1762878561195,-500.0,0.00040036,60]
[393649072,1762878561251,-500.0,0.00040036,60]
[393649073,1762878561297,-500.0,0.00040036,60]
[393649074,1762878561345,-500.0,0.00040036,60]
[393649075,1762878561392,-500.0,0.00040036,60]
[393649076,1762878561435,-500.0,0.00040036,60]
[393649077,1762878561476,-500.0,0.00040036,60]
[393649078,1762878561518,-168.34614064,0.00040036,60]
[393649079,1762878561563,-500.0,0.00040036,60]
[393649080,1762878561604,-500.0,0.00040036,60]
[393649081,1762878561649,-150.0,0.00040036,60]
[393649082,1762878561693,-500.0,0.00040036,60]
[393649083,1762878561735,-500.0,0.00040036,60]
[393649084,1762878561783,-500.0,0.00040036,22]
[393649085,1762878561830,-500.0,0.00040036,22]
[393649086,1762878561876,-364.92,0.00040036,30]
[393649087,1762878561917,-150.0,0.00040036,60]
[393649088,1762878561959,-150.0,0.00040036,60]
[393649089,1762878562000,-500.0,0.00040036,60]
[393649090,1762878562042,-500.0,0.00040036,60]
[393649091,1762878562083,-150.0,0.00040036,60]
[393649092,1762878562124,-500.0,0.00040036,60]
[393649093,1762878562164,-500.0,0.00040036,60]
[393649094,1762878562204,-150.0,0.00040036,60]
[393649095,1762878562245,-500.0,0.00040036,60]
[393649096,1762878562286,-150.0,0.00040036,60]
[393649097,1762878562326,-500.0,0.00040036,60]
[393649098,1762878562371,-500.0,0.00040036,60]
[393649099,1762878562414,-500.0,0.00040036,60]
[393649100,1762878562455,-500.0,0.00040036,60]
[393649101,1762878562499,-5603.19554933,0.00040038,15]
[393649102,1762878562542,-4944.2597549,0.00040038,15]
[393649103,1762878562583,-155.50735078,0.00040038,15]
[393649104,1762878562624,-150.0,0.00040073,5]
[393649105,1762878562664,-500.0,0.00040095,120]
[393649106,1762878562705,-204.06,0.000401,27]
[393649107,1762878562751,-600.0,0.00040111,15]
[393649108,1762878562793,-600.0,0.00040111,15]
[393649109,1762878562834,-600.0,0.00040111,15]
[393649110,1762878562876,-600.0,0.00040111,15]
[393649111,1762878562919,-600.0,0.00040111,15]
[393649112,1762878562976,-600.0,0.00040111,15]
[393649113,1762878563026,-600.0,0.00040111,15]
[393649114,1762878563078,-600.0,0.00040111,15]
[393649115,1762878563129,-600.0,0.00040111,15]
[393649116,1762878563176,-600.0,0.00040111,15]
[393649117,1762878563226,-1000.0,0.00040124,14]
[393649118,1762878563280,-1000.0,0.00040129,30]
[393649119,1762878563332,-1000.0,0.00040129,30]
[393649120,1762878563378,-1000.0,0.00040129,30]
[393649121,1762878563430,-1000.0,0.00040129,30]
[393649122,1762878563481,-151.0,0.00040131,14]
[393649123,1762878563532,-1242.0,0.00040132,14]
[393649124,1762878563582,-500.0,0.00040133,7]
[393649125,1762878563632,-406.61634355,0.00040133,7]
[393649126,1762878563679,-500.0,0.00040133,20]
[393649127,1762878563728,-500.0,0.00040133,20]
[393649128,1762878563776,-500.0,0.00040133,20]
[393649129,1762878563825,-500.0,0.00040133,20]
[393649130,1762878563871,-498.6504868,0.00040134,20]
[393649131,1762878563917,-820.59,0.00040134,20]
[393649132,1762878563962,-820.59,0.00040134,20]
[393649133,1762878564013,-820.59,0.00040134,20]
[393649134,1762878564059,-820.59,0.00040134,20]
[393649135,1762878564106,-820.59,0.00040134,20]
[393649136,1762878564147,-820.59,0.00040134,20]
[393649137,1762878564191,-820.59,0.00040134,20]
[393649138,1762878564239,-820.59,0.00040134,20]
[393649139,1762878564285,-820.59,0.00040134,20]
[393649140,1762878564330,-820.59,0.00040134,20]
[393649141,1762878564375,-820.59,0.00040134,20]
[393649142,1762878564424,-820.59,0.00040134,20]
[393649143,1762878564473,-820.59,0.00040134,20]
[393649144,1762878564520,-820.59,0.00040134,20]
[393649145,1762878564565,-820.59,0.00040134,20]
[393649146,1762878564610,-820.59,0.00040134,20]
[393649147,1762878564656,-820.59,0.00040134,20]
[393649148,1762878564703,-820.59,0.00040134,20]
[393649149,1762878564745,-820.59,0.00040134,20]
[393649150,1762878564789,-820.59,0.00040134,20]
[393649151,1762878564833,-820.59,0.00040134,20]
[393649152,1762878564881,-820.59,0.00040134,20]
[393649153,1762878564926,-820.59,0.00040134,20]
[393649154,1762878564968,-820.59,0.00040134,20]
[393649155,1762878565013,-500.0,0.00040134,20]
[393649156,1762878565057,-500.0,0.00040134,20]
[393649157,1762878565101,-500.0,0.00040134,20]
[393649158,1762878565145,-151.0,0.00040135,14]
[393649159,1762878565189,-1373.75,0.00040135,120]
[393649160,1762878565237,-459.02,0.00040135,120]
[393649161,1762878565281,-500.0,0.00040135,7]
[393649162,1762878565326,-500.0,0.00040135,7]
[393649163,1762878565371,-150.0,0.00040135,7]
[393649164,1762878565417,-500.0,0.00040135,7]
[393649165,1762878565464,-151.0,0.00040135,120]
[393649166,1762878565507,-151.0,0.00040135,120]
[393649167,1762878565557,-158.042219,0.00040135,120]
[393649168,1762878565601,-150.21338972,0.00040135,7]
[393649169,1762878565644,-500.0,0.00040135,7]
[393649170,1762878565874,-253.18593022,0.00040135,7]
[393649171,1762878565919,-500.0,0.00040135,7]
[393649172,1762878565970,-163.721245,0.00040135,120]
[393649173,1762878566016,-150.0,0.00040135,7]
[393649174,1762878566057,-500.0,0.00040135,7]
[393649175,1762878566099,-150.0,0.00040135,7]
[393649176,1762878566140,-150.0,0.00040135,7]
[393649177,1762878566181,-150.0,0.00040135,7]
[393649178,1762878566221,-500.0,0.00040135,7]
[393649179,1762878566261,-200.0,0.00040135,7]
[393649180,1762878566302,-150.0,0.00040135,7]
[393649181,1762878566344,-154.029707,0.00040135,120]
[393649182,1762878566386,-158.855802,0.00040135,120]
[393649183,1762878566430,-200.0,0.00040135,7]
[393649184,1762878566473,-158.75540727,0.00040135,30]
[393649185,1762878566515,-649.90159522,0.00040135,30]
[393649186,1762878566559,-209.71270312,0.00040135,30]
[393649187,1762878566602,-649.90159522,0.00040135,30]
[393649188,1762878566643,-209.71270312,0.00040135,30]
[393649189,1762878566689,-649.90159522,0.00040135,30]
[393649190,1762878566736,-300.0,0.00040137,10]
[393649191,1762878566778,-300.0,0.00040137,10]
[393649192,1762878566819,-629.24326679,0.00040137,10]
[393649193,1762878566864,-322.23681374,0.00040138,29]
[393649194,1762878566936,-151.0,0.00040138,15]
[393649195,1762878566977,-151.0,0.00040138,15]
[393649196,1762878567018,-151.0,0.00040138,15]
[393649197,1762878567057,-151.0,0.00040138,15]
[393649198,1762878567095,-151.0,0.00040138,15]
[393649199,1762878567136,-151.0,0.00040138,15]
[393649200,1762878567175,-151.0,0.00040138,15]
[393649201,1762878567219,-170.562008,0.00040138,15]
[393649202,1762878567260,-151.0,0.00040138,120]
[393649203,1762878567300,-151.0,0.00040138,120]
[393649204,1762878567343,-151.0,0.00040138,120]
[393649205,1762878567385,-151.0,0.00040138,120]
[393649206,1762878567426,-160.539842,0.00040138,120]
[393649207,1762878567466,-151.0,0.00040138,120]
[393649208,1762878567510,-151.0,0.00040138,120]
[393649209,1762878567554,-151.0,0.00040138,120]
[393649210,1762878567601,-151.0,0.00040138,120]
[393649211,1762878567643,-151.0,0.00040138,120]
[393649212,1762878567684,-151.0,0.00040138,120]
[393649213,1762878567727,-151.000003,0.00040138,120]
[393649214,1762878567765,-151.0,0.00040138,14]
[393649215,1762878567803,-151.0,0.00040138,120]
[393649216,1762878567843,-151.0,0.00040138,120]
[393649217,1762878567884,-151.0,0.00040138,120]
[393649218,1762878567926,-151.0,0.00040138,120]
[393649219,1762878567964,-656.25,0.00040138,120]
[393649220,1762878568003,-656.25,0.00040138,120]
[393649221,1762878568041,-656.25,0.00040138,120]
[393649222,1762878568082,-656.25,0.00040138,120]
[393649223,1762878568120,-656.25,0.00040138,120]
[393649224,1762878568159,-656.25,0.00040138,120]
[393649225,1762878568198,-656.25,0.00040138,120]
[393649226,1762878568238,-656.25,0.00040138,120]
[393649227,1762878568284,-656.25,0.00040138,120]
[393649228,1762878568324,-656.25,0.00040138,120]
[393649229,1762878568364,-656.25,0.00040138,120]
[393649230,1762878568407,-656.25,0.00040138,120]
[393649231,1762878568449,-656.25,0.00040138,120]
[393649232,1762878568490,-656.25,0.00040138,120]
[393649233,1762878568530,-656.25,0.00040138,120]
[393649234,1762878568575,-656.25,0.00040138,120]
[393649235,1762878568615,-656.25,0.00040138,120]
[393649236,1762878568657,-656.25,0.00040138,120]
[393649237,1762878568698,-656.25,0.00040138,120]
[393649238,1762878568737,-656.25,0.00040138,120]
[393649239,1762878568779,-151.0,0.00040138,120]
[393649240,1762878568819,-151.0,0.00040138,120]
[393649241,1762878568861,-151.0,0.00040138,120]
[393649242,1762878568900,-151.0,0.00040138,120]
[393649243,1762878568942,-151.0,0.00040138,120]
[393649244,1762878568983,-151.0,0.00040138,120]
[393649245,1762878569032,-151.0,0.00040138,120]
[393649246,1762878569074,-151.0,0.00040138,120]
[393649247,1762878569115,-151.0,0.00040138,120]
[393649248,1762878569154,-151.0,0.00040138,120]
[393649249,1762878569194,-151.0,0.00040138,120]
[393649250,1762878569234,-151.0,0.00040138,120]
[393649251,1762878569273,-151.0,0.00040138,120]
[393649252,1762878569313,-261.208752,0.00040138,120]
[393649253,1762878569354,-151.0,0.00040138,120]
[393649254,1762878569396,-151.0,0.00040138,120]
[393649255,1762878569437,-151.0,0.00040138,120]
[393649256,1762878569479,-151.0,0.00040138,120]
[393649257,1762878569519,-151.0,0.00040138,120]
[393649258,1762878569560,-151.0,0.00040138,120]
[393649259,1762878569601,-151.0,0.00040138,120]
[393649260,1762878569643,-151.0,0.00040138,120]
[393649261,1762878569685,-151.0,0.00040138,120]
[393649262,1762878569886,-219.765868,0.00040138,120]
[393649263,1762878569928,-362.60709,0.00040138,120]
[393649264,1762878569969,-362.60709,0.00040138,120]
[393649265,1762878570009,-362.60709,0.00040138,120]
[393649266,1762878570049,-362.60709,0.00040138,120]
[393649267,1762878570090,-362.60709,0.00040138,120]
[393649268,1762878570131,-362.60709,0.00040138,120]
[393649269,1762878570174,-362.60709,0.00040138,120]
[393649270,1762878570216,-362.60709,0.00040138,120]
[393649271,1762878570260,-362.60709,0.00040138,120]
[393649272,1762878570303,-151.0,0.00040138,30]
[393649273,1762878570351,-362.60709,0.00040138,120]
[393649274,1762878570400,-151.0,0.00040138,30]
[393649275,1762878570443,-362.60709,0.00040138,120]
[393649276,1762878570488,-151.0,0.00040138,30]
[393649277,1762878570535,-362.60709,0.00040138,120]
[393649278,1762878570580,-362.60709,0.00040138,120]
[393649279,1762878570624,-362.60709,0.00040138,120]
[393649280,1762878570671,-362.60709,0.00040138,120]
[393649281,1762878570714,-362.60709,0.00040138,120]
[393649282,1762878570755,-362.60709,0.00040138,120]
[393649283,1762878570798,-151.0,0.00040138,120]
[393649284,1762878570840,-362.60709,0.00040138,120]
[393649285,1762878570883,-151.0,0.00040138,120]
[393649286,1762878570923,-362.60709,0.00040138,120]
[393649287,1762878570968,-151.0,0.00040138,120]
[393649288,1762878571010,-362.607098,0.00040138,120]
[393649289,1762878571052,-151.0,0.00040138,120]
[393649290,1762878571093,-151.0,0.00040138,120]
[393649291,1762878571136,-151.0,0.00040138,120]
[393649292,1762878571178,-151.0,0.00040138,120]
[393649293,1762878571225,-151.0,0.00040138,120]
[393649294,1762878571267,-151.0,0.00040138,120]
[393649295,1762878571308,-151.0,0.00040138,120]
[393649296,1762878571350,-151.0,0.00040138,120]
[393649297,1762878571394,-151.0,0.00040138,120]
[393649298,1762878571437,-151.0,0.00040138,120]
[393649299,1762878571480,-151.0,0.00040138,120]
[393649300,1762878571520,-187.919952,0.00040138,120]
[393649301,1762878571562,-327.478996,0.00040138,120]
[393649302,1762878571602,-327.478996,0.00040138,120]
[393649303,1762878571641,-327.478996,0.00040138,120]
[393649304,1762878571682,-327.478996,0.00040138,120]
[393649305,1762878571727,-327.478996,0.00040138,120]
[393649306,1762878571769,-327.478996,0.00040138,120]
[393649307,1762878571811,-327.478996,0.00040138,120]
[393649308,1762878571850,-327.478996,0.00040138,120]
[393649309,1762878571896,-327.478996,0.00040138,120]
[393649310,1762878571936,-327.478996,0.00040138,120]
[393649311,1762878571977,-327.478996,0.00040138,120]
[393649312,1762878572017,-327.478996,0.00040138,120]
[393649313,1762878572059,-327.478996,0.00040138,120]
[393649314,1762878572100,-327.478996,0.00040138,120]
[393649315,1762878572141,-327.478996,0.00040138,120]
[393649316,1762878572179,-327.478996,0.00040138,120]
[393649317,1762878572219,-327.478996,0.00040138,120]
[393649318,1762878572263,-327.478996,0.00040138,120]
[393649319,1762878572302,-327.478996,0.00040138,120]
[393649320,1762878572344,-327.478993,0.00040138,120]
[393649321,1762878572390,-151.0,0.00040138,120]
[393649322,1762878572434,-151.0,0.00040138,120]
[393649323,1762878572477,-151.0,0.00040138,120]
[393649324,1762878572521,-151.0,0.00040138,120]
[393649325,1762878572565,-151.0,0.00040138,120]
[393649326,1762878572612,-151.0,0.00040138,120]
[393649327,1762878572655,-151.0,0.00040138,120]
[393649328,1762878572699,-151.0,0.00040138,120]
[393649329,1762878572740,-151.0,0.00040138,120]
[393649330,1762878572782,-151.0,0.00040138,120]
[393649331,1762878572827,-151.0,0.00040138,120]
[393649332,1762878572869,-151.0,0.00040138,120]
[393649333,1762878572908,-151.0,0.00040138,120]
[393649334,1762878572946,-151.0,0.00040138,120]
[393649335,1762878572986,-250.724204,0.00040138,120]
[393649336,1762878573027,-181.610566,0.00040138,30]
[393649337,1762878573069,-181.610566,0.00040138,30]
[393649338,1762878573108,-181.610566,0.00040138,30]
[393649339,1762878573149,-181.610566,0.00040138,30]
[393649340,1762878573190,-181.610566,0.00040138,30]
[393649341,1762878573233,-181.610566,0.00040138,30]
[393649342,1762878573275,-181.610566,0.00040138,30]
[393649343,1762878573316,-181.610566,0.00040138,30]
[393649344,1762878573359,-457.6179,0.00040138,120]
[393649345,1762878573404,-181.610566,0.00040138,30]
[393649346,1762878573448,-457.6179,0.00040138,120]
[393649347,1762878573492,-181.610566,0.00040138,30]
[393649348,1762878573533,-457.6179,0.00040138,120]
[393649349,1762878573579,-181.610566,0.00040138,30]
[393649350,1762878573621,-181.610566,0.00040138,30]
[393649351,1762878573662,-457.6179,0.00040138,120]
[393649352,1762878573704,-457.6179,0.00040138,120]
[393649353,1762878573747,-181.610566,0.00040138,30]
[393649354,1762878573788,-457.6179,0.00040138,120]
[393649355,1762878573831,-181.610566,0.00040138,30]
[393649356,1762878573998,-181.610566,0.00040138,30]
[393649357,1762878574042,-457.6179,0.00040138,120]
[393649358,1762878574091,-181.610566,0.00040138,30]
[393649359,1762878574136,-457.6179,0.00040138,120]
[393649360,1762878574183,-181.610566,0.00040138,30]
[393649361,1762878574227,-457.6179,0.00040138,120]
[393649362,1762878574270,-457.6179,0.00040138,120]
[393649363,1762878574317,-181.610566,0.00040138,30]
[393649364,1762878574360,-457.6179,0.00040138,120]
[393649365,1762878574406,-181.610566,0.00040138,30]
[393649366,1762878574447,-457.6179,0.00040138,120]
[393649367,1762878574490,-457.6179,0.00040138,120]
[393649368,1762878574535,-181.610575,0.00040138,30]
[393649369,1762878574577,-457.6179,0.00040138,120]
[393649370,1762878574621,-457.6179,0.00040138,120]
[393649371,1762878574663,-457.6179,0.00040138,120]
[393649372,1762878574703,-457.6179,0.00040138,120]
[393649373,1762878574744,-457.6179,0.00040138,120]
[393649374,1762878574783,-457.6179,0.00040138,120]
[393649375,1762878574822,-457.617892,0.00040138,120]
[393649376,1762878574861,-151.0,0.00040138,120]
[393649377,1762878574902,-151.0,0.00040138,120]
[393649378,1762878574942,-151.0,0.00040138,120]
[393649379,1762878574982,-151.0,0.00040138,120]
[393649380,1762878575023,-151.0,0.00040138,120]
[393649381,1762878575064,-151.0,0.00040138,120]
[393649382,1762878575106,-151.0,0.00040138,120]
[393649383,1762878575147,-151.0,0.00040138,120]
[393649384,1762878575188,-151.0,0.00040138,120]
[393649385,1762878575229,-151.0,0.00040138,120]
[393649386,1762878575270,-151.0,0.00040138,120]
[393649387,1762878575311,-183.43624,0.00040138,120]
[393649388,1762878575353,-151.0,0.00040138,95]
[393649389,1762878575394,-151.0,0.00040138,95]
[393649390,1762878575434,-262.253714,0.00040138,120]
[393649391,1762878575475,-1000.22987673,0.0004014,5]
[393649392,1762878575515,-500.0,0.00040173,5]
[393649393,1762878575559,-500.0,0.00040173,5]
[393649394,1762878575598,-501.56834888,0.00040173,5]
[393649395,1762878575636,-500.0,0.00040173,5]
[393649396,1762878575675,-500.0,0.00040173,5]
[393649397,1762878575712,-500.0,0.00040173,5]
[393649398,1762878575752,-500.0,0.00040173,5]
[393649399,1762878575789,-1000.0,0.00040173,5]
[393649400,1762878575828,-150.0,0.00040173,49]
[393649401,1762878575865,-150.0,0.00040173,60]
[393649402,1762878575904,-500.0,0.00040173,60]
[393649403,1762878575944,-500.0,0.00040173,60]
[393649404,1762878575984,-150.0,0.00040173,60]
[393649405,1762878576023,-500.0,0.00040173,60]
[393649406,1762878576063,-500.0,0.00040173,60]
[393649407,1762878576101,-150.0,0.00040173,60]